[Event "Early-Titled-Tuesday-Blitz-November-28-2023"]
[Site "Chess.com"]
[Date "2023.11.28"]
[Round "7"]
[White "GMKrikor"]
[Black "Ginzburg_Yakov"]
[Result "0-1"]
[WhiteElo "2775"]
[BlackElo "2619"]
[TimeControl "180+1"]
[EndTime "9:25:03 PST"]
[Termination "Ginzburg_Yakov won by resignation"]

1. Nf3 {[%clk 0:03:00.9]} 1... Nf6 {[%clk 0:02:57.2]} 2. c4 {[%clk 0:02:59.9]}
2... c6 {[%clk 0:02:57.3]} 3. d4 {[%clk 0:02:59.7]} 3... d5 {[%clk 0:02:57.1]}
4. Nc3 {[%clk 0:03:00.5]} 4... dxc4 {[%clk 0:02:55.8]} 5. a4 {[%clk 0:02:59.9]}
5... Bf5 {[%clk 0:02:55.6]} 6. Nh4 {[%clk 0:02:57.6]} 6... Bg4 {[%clk
0:02:50.6]} 7. h3 {[%clk 0:02:53.6]} 7... Bh5 {[%clk 0:02:48.8]} 8. g4 {[%clk
0:02:53.5]} 8... Bg6 {[%clk 0:02:48.9]} 9. g5 {[%clk 0:02:23.5]} 9... Nd5 {[%clk
0:02:46.1]} 10. Nxg6 {[%clk 0:02:23.8]} 10... hxg6 {[%clk 0:02:45.6]} 11. e4
{[%clk 0:02:24.4]} 11... Nb4 {[%clk 0:02:33.5]} 12. Bxc4 {[%clk 0:02:23.3]}
12... Qxd4 {[%clk 0:02:22.7]} 13. Qb3 {[%clk 0:01:25.8]} 13... e6 {[%clk
0:02:19.9]} 14. Be3 {[%clk 0:01:23]} 14... Nc2+ {[%clk 0:02:04.9]} 15. Qxc2
{[%clk 0:00:57.4]} 15... Qxc4 {[%clk 0:02:04.7]} 16. O-O-O {[%clk 0:00:56.4]}
16... Bc5 {[%clk 0:01:52.7]} 17. Bxc5 {[%clk 0:00:47]} 17... Qxc5 {[%clk
0:01:51.5]} 18. Rd3 {[%clk 0:00:45.3]} 18... Qxg5+ {[%clk 0:01:44.2]} 19. Kb1
{[%clk 0:00:44.9]} 19... Na6 {[%clk 0:01:39.8]} 20. Rg3 {[%clk 0:00:39.1]} 20...
Qe5 {[%clk 0:01:33.1]} 21. Qc1 {[%clk 0:00:38.9]} 21... O-O-O {[%clk 0:01:27.3]}
22. f4 {[%clk 0:00:39.3]} 22... Qd4 {[%clk 0:01:22.7]} 23. e5 {[%clk 0:00:39.5]}
23... Nb4 {[%clk 0:01:17.8]} 24. Rd1 {[%clk 0:00:34.9]} 24... Qc4 {[%clk
0:01:15.1]} 25. Re3 {[%clk 0:00:32.1]} 25... Rxd1 {[%clk 0:01:13.5]} 26. Qxd1
{[%clk 0:00:31.1]} 26... Rd8 {[%clk 0:01:12.8]} 27. Qe2 {[%clk 0:00:24]} 27...
Qxf4 {[%clk 0:01:07.9]} 28. Rf3 {[%clk 0:00:23]} 28... Qg5 {[%clk 0:00:56.6]}
29. Rxf7 {[%clk 0:00:22]} 29... Rd2 {[%clk 0:00:45.4]} 30. Qf1 {[%clk
0:00:14.9]} 30... a5 {[%clk 0:00:39.2]} 31. Ne4 {[%clk 0:00:12.6]} 31... Qe3
{[%clk 0:00:26.6]} 32. Rf8+ {[%clk 0:00:05.8]} 32... Kc7 {[%clk 0:00:23.4]} 33.
Nd6 {[%clk 0:00:06.4]} 33... Rxb2+ {[%clk 0:00:19]} 34. Kxb2 {[%clk 0:00:06.1]}
34... Qd2+ {[%clk 0:00:18.6]} 0-1

[Event "Early-Titled-Tuesday-Blitz-November-28-2023"]
[Site "Chess.com"]
[Date "2023.11.28"]
[Round "7"]
[White "vishwa_vijeta"]
[Black "Gabix_94"]
[Result "1-0"]
[WhiteElo "2567"]
[BlackElo "2738"]
[TimeControl "180+1"]
[EndTime "9:25:03 PST"]
[Termination "vishwa_vijeta won on time"]

1. e4 {[%clk 0:03:00.9]} 1... e5 {[%clk 0:03:00]} 2. Nf3 {[%clk 0:02:57.8]} 2...
d6 {[%clk 0:03:00.2]} 3. d3 {[%clk 0:02:57.6]} 3... f5 {[%clk 0:02:59.4]} 4.
exf5 {[%clk 0:02:45.5]} 4... Bxf5 {[%clk 0:03:00.3]} 5. Nc3 {[%clk 0:02:45.8]}
5... Nc6 {[%clk 0:02:58.3]} 6. Be2 {[%clk 0:02:36.7]} 6... Nf6 {[%clk
0:02:55.4]} 7. O-O {[%clk 0:02:35.4]} 7... Be7 {[%clk 0:02:56]} 8. Re1 {[%clk
0:02:10.8]} 8... O-O {[%clk 0:02:52.8]} 9. Ne4 {[%clk 0:02:08.2]} 9... Kh8
{[%clk 0:02:51]} 10. Ng3 {[%clk 0:02:04.4]} 10... Be6 {[%clk 0:02:46.3]} 11. d4
{[%clk 0:01:59.5]} 11... exd4 {[%clk 0:02:32]} 12. Bd3 {[%clk 0:01:45.4]} 12...
Bg8 {[%clk 0:02:27.9]} 13. Nf5 {[%clk 0:01:43.6]} 13... Qd7 {[%clk 0:02:09.8]}
14. N3xd4 {[%clk 0:01:28.6]} 14... Bd8 {[%clk 0:02:02.8]} 15. Nxc6 {[%clk
0:01:22.2]} 15... bxc6 {[%clk 0:02:03.7]} 16. Bd2 {[%clk 0:01:17.6]} 16... c5
{[%clk 0:02:02.1]} 17. c4 {[%clk 0:01:14.3]} 17... Bxc4 {[%clk 0:01:43.6]} 18.
Bxc4 {[%clk 0:01:13.7]} 18... Qxf5 {[%clk 0:01:42.9]} 19. Bc3 {[%clk 0:01:11.8]}
19... Ne4 {[%clk 0:01:33.9]} 20. Qc2 {[%clk 0:01:09.3]} 20... Ng3 {[%clk
0:00:58.7]} 21. Bd3 {[%clk 0:01:06.4]} 21... Qh5 {[%clk 0:00:53.1]} 22. hxg3
{[%clk 0:01:04.5]} 22... d5 {[%clk 0:00:53.6]} 23. Re5 {[%clk 0:01:01.6]} 23...
Qf7 {[%clk 0:00:51.8]} 24. Bxh7 {[%clk 0:01:01.3]} 24... d4 {[%clk 0:00:50.8]}
25. Bg6 {[%clk 0:01:01]} 25... Qc4 {[%clk 0:00:48.7]} 26. Rh5+ {[%clk
0:01:00.3]} 26... Kg8 {[%clk 0:00:49.3]} 27. Bh7+ {[%clk 0:00:56.6]} 27... Kf7
{[%clk 0:00:49.9]} 28. Qg6+ {[%clk 0:00:56.7]} 28... Ke7 {[%clk 0:00:50.4]} 29.
Re1+ {[%clk 0:00:56.4]} 29... Kd7 {[%clk 0:00:49.7]} 30. Qxg7+ {[%clk 0:00:56]}
30... Kc8 {[%clk 0:00:47.2]} 31. Qxf8 {[%clk 0:00:56]} 31... dxc3 {[%clk
0:00:47.5]} 32. bxc3 {[%clk 0:00:56]} 32... Qxc3 {[%clk 0:00:47.6]} 33. Rd1
{[%clk 0:00:55.9]} 33... Kb7 {[%clk 0:00:47.1]} 34. Be4+ {[%clk 0:00:54.8]}
34... c6 {[%clk 0:00:46.9]} 35. Rh7+ {[%clk 0:00:53.3]} 35... Ka6 {[%clk
0:00:46.8]} 36. Bxc6 {[%clk 0:00:50.7]} 36... Rb8 {[%clk 0:00:45.8]} 37. Qf7
{[%clk 0:00:48.4]} 37... Bb6 {[%clk 0:00:43.5]} 38. Qb3 {[%clk 0:00:47.4]} 38...
Qxb3 {[%clk 0:00:41.8]} 39. axb3 {[%clk 0:00:48]} 39... Ka5 {[%clk 0:00:42.7]}
40. Bd5 {[%clk 0:00:47.1]} 40... Kb4 {[%clk 0:00:42.5]} 41. Bc4 {[%clk
0:00:47.3]} 41... a5 {[%clk 0:00:41.3]} 42. Ra1 {[%clk 0:00:46.1]} 42... Rd8
{[%clk 0:00:37.9]} 43. g4 {[%clk 0:00:46.3]} 43... Rd4 {[%clk 0:00:35.5]} 44. g5
{[%clk 0:00:46.4]} 44... Rg4 {[%clk 0:00:21.1]} 45. Rh3 {[%clk 0:00:43.1]} 1-0

[Event "Early-Titled-Tuesday-Blitz-November-28-2023"]
[Site "Chess.com"]
[Date "2023.11.28"]
[Round "7"]
[White "andrzej"]
[Black "tylityli"]
[Result "1-0"]
[WhiteElo "2452"]
[BlackElo "2272"]
[TimeControl "180+1"]
[EndTime "9:25:03 PST"]
[Termination "andrzej won on time"]

1. e4 {[%clk 0:03:00.9]} 1... e5 {[%clk 0:02:58.7]} 2. Nf3 {[%clk 0:02:58.1]}
2... Nc6 {[%clk 0:02:58.1]} 3. Bb5 {[%clk 0:02:58]} 3... a6 {[%clk 0:02:57.5]}
4. Ba4 {[%clk 0:02:58.5]} 4... Nf6 {[%clk 0:02:56.5]} 5. O-O {[%clk 0:02:59]}
5... Be7 {[%clk 0:02:50.4]} 6. Re1 {[%clk 0:02:59.4]} 6... b5 {[%clk 0:02:50]}
7. Bb3 {[%clk 0:03:00]} 7... d6 {[%clk 0:02:50.9]} 8. c3 {[%clk 0:02:59.7]} 8...
O-O {[%clk 0:02:48.3]} 9. h3 {[%clk 0:02:59.5]} 9... Nd7 {[%clk 0:02:38]} 10. d4
{[%clk 0:02:50.6]} 10... Bf6 {[%clk 0:02:28.8]} 11. d5 {[%clk 0:02:26]} 11...
Ne7 {[%clk 0:02:27.3]} 12. Be3 {[%clk 0:02:19.5]} 12... Ng6 {[%clk 0:02:17.2]}
13. a4 {[%clk 0:02:19.1]} 13... Rb8 {[%clk 0:02:08.8]} 14. Nbd2 {[%clk
0:02:04.4]} 14... b4 {[%clk 0:01:52.5]} 15. Nc4 {[%clk 0:01:56.1]} 15... Nc5
{[%clk 0:01:39]} 16. Bxc5 {[%clk 0:01:52]} 16... dxc5 {[%clk 0:01:38.1]} 17. Rb1
{[%clk 0:01:30.1]} 17... Bd7 {[%clk 0:01:30.2]} 18. Qd2 {[%clk 0:01:17.2]} 18...
Re8 {[%clk 0:01:23.1]} 19. Qe3 {[%clk 0:01:16.4]} 19... Nf4 {[%clk 0:01:01.7]}
20. Kh2 {[%clk 0:00:53.7]} 20... Qe7 {[%clk 0:00:57.6]} 21. Ng1 {[%clk
0:00:52.2]} 21... Bg5 {[%clk 0:00:51.3]} 22. Qf3 {[%clk 0:00:52]} 22... Qf6
{[%clk 0:00:45.5]} 23. g3 {[%clk 0:00:46.4]} 23... Ng6 {[%clk 0:00:24.4]} 24. h4
{[%clk 0:00:43.3]} 24... Bxh4 {[%clk 0:00:13.3]} 25. Qxf6 {[%clk 0:00:36.5]}
25... Bxf6 {[%clk 0:00:12.4]} 26. Nf3 {[%clk 0:00:36.6]} 26... h6 {[%clk
0:00:06.4]} 27. Nfd2 {[%clk 0:00:25.7]} 27... Be7 {[%clk 0:00:04.7]} 28. Bc2
{[%clk 0:00:22.4]} 28... Bd6 {[%clk 0:00:04.6]} 29. Ra1 {[%clk 0:00:19]} 29...
Rf8 {[%clk 0:00:02.5]} 30. Bd3 {[%clk 0:00:18.9]} 30... Rfe8 {[%clk 0:00:01.8]}
31. Nxd6 {[%clk 0:00:17.6]} 31... cxd6 {[%clk 0:00:01.1]} 32. Bxa6 {[%clk
0:00:18.5]} 32... Ra8 {[%clk 0:00:01.4]} 33. Bb5 {[%clk 0:00:17.2]} 1-0

[Event "Early-Titled-Tuesday-Blitz-November-28-2023"]
[Site "Chess.com"]
[Date "2023.11.28"]
[Round "7"]
[White "Kotlyar_K"]
[Black "AccioChess"]
[Result "0-1"]
[WhiteElo "2649"]
[BlackElo "2500"]
[TimeControl "180+1"]
[EndTime "9:25:04 PST"]
[Termination "AccioChess won by resignation"]

1. e4 {[%clk 0:02:57.6]} 1... c5 {[%clk 0:02:56.2]} 2. Nf3 {[%clk 0:02:57.3]}
2... d6 {[%clk 0:02:56.4]} 3. d4 {[%clk 0:02:57.6]} 3... cxd4 {[%clk 0:02:57.3]}
4. Qxd4 {[%clk 0:02:58.5]} 4... Nf6 {[%clk 0:02:58]} 5. e5 {[%clk 0:02:47.5]}
5... Qa5+ {[%clk 0:02:50.3]} 6. Bd2 {[%clk 0:02:37.9]} 6... dxe5 {[%clk
0:02:50]} 7. Nxe5 {[%clk 0:02:21.4]} 7... Qb6 {[%clk 0:02:49.1]} 8. Qxb6 {[%clk
0:02:16.1]} 8... axb6 {[%clk 0:02:50]} 9. Nc4 {[%clk 0:02:16.7]} 9... Nfd7
{[%clk 0:02:33.8]} 10. Nc3 {[%clk 0:02:14.9]} 10... f6 {[%clk 0:02:26.3]} 11.
O-O-O {[%clk 0:02:09.3]} 11... e6 {[%clk 0:02:24.3]} 12. Bd3 {[%clk 0:02:01.8]}
12... Bb4 {[%clk 0:02:17.8]} 13. Nb5 {[%clk 0:01:54.4]} 13... Bxd2+ {[%clk
0:02:16.9]} 14. Rxd2 {[%clk 0:01:54.2]} 14... O-O {[%clk 0:02:16.8]} 15. a3
{[%clk 0:01:49.1]} 15... Nc6 {[%clk 0:02:13.4]} 16. b4 {[%clk 0:01:26.4]} 16...
Nce5 {[%clk 0:02:12.5]} 17. Be2 {[%clk 0:01:23.5]} 17... Nxc4 {[%clk 0:02:10.3]}
18. Bxc4 {[%clk 0:01:24.4]} 18... Ne5 {[%clk 0:02:10.2]} 19. Be2 {[%clk
0:01:20.6]} 19... Bd7 {[%clk 0:02:08.2]} 20. Kb2 {[%clk 0:01:19.6]} 20... Bxb5
{[%clk 0:02:03.4]} 21. Bxb5 {[%clk 0:01:20.5]} 21... Rfd8 {[%clk 0:01:54.7]} 22.
Rhd1 {[%clk 0:01:19.9]} 22... Rxd2 {[%clk 0:01:49.8]} 23. Rxd2 {[%clk
0:01:20.8]} 23... g5 {[%clk 0:01:10.8]} 24. h3 {[%clk 0:01:07.5]} 24... Kf7
{[%clk 0:00:46.6]} 25. Rd6 {[%clk 0:01:07]} 25... Rc8 {[%clk 0:00:43.3]} 26.
Rxb6 {[%clk 0:01:06.2]} 26... Rc7 {[%clk 0:00:43.3]} 27. a4 {[%clk 0:01:00.6]}
27... Ke7 {[%clk 0:00:43.3]} 28. a5 {[%clk 0:00:59.5]} 28... h5 {[%clk
0:00:42.6]} 29. Kb3 {[%clk 0:00:59.6]} 29... g4 {[%clk 0:00:41.6]} 30. Be2
{[%clk 0:00:56.6]} 30... f5 {[%clk 0:00:41.1]} 31. b5 {[%clk 0:00:44.3]} 31...
Nd7 {[%clk 0:00:40.4]} 32. c4 {[%clk 0:00:33.8]} 32... Nxb6 {[%clk 0:00:40]} 33.
axb6 {[%clk 0:00:34.7]} 33... Rc5 {[%clk 0:00:37.8]} 34. hxg4 {[%clk 0:00:31.5]}
34... hxg4 {[%clk 0:00:37.1]} 35. f3 {[%clk 0:00:17.3]} 35... Re5 {[%clk
0:00:37]} 36. Bd1 {[%clk 0:00:15.9]} 36... Re1 {[%clk 0:00:29]} 37. Kc2 {[%clk
0:00:15.8]} 37... Rg1 {[%clk 0:00:28.7]} 38. fxg4 {[%clk 0:00:15.8]} 38... fxg4
{[%clk 0:00:27.1]} 39. Kd3 {[%clk 0:00:13.8]} 39... Rxd1+ {[%clk 0:00:26.9]} 0-1

[Event "Early-Titled-Tuesday-Blitz-November-28-2023"]
[Site "Chess.com"]
[Date "2023.11.28"]
[Round "7"]
[White "NowInChess"]
[Black "Jojo_898"]
[Result "1-0"]
[WhiteElo "2192"]
[BlackElo "2371"]
[TimeControl "180+1"]
[EndTime "9:25:05 PST"]
[Termination "NowInChess won by checkmate"]

1. e4 {[%clk 0:03:00.9]} 1... d6 {[%clk 0:03:00]} 2. d3 {[%clk 0:03:00.1]} 2...
Nf6 {[%clk 0:03:00.7]} 3. g3 {[%clk 0:03:00.6]} 3... g6 {[%clk 0:03:01.4]} 4.
Bg2 {[%clk 0:03:01.1]} 4... Bg7 {[%clk 0:03:02.1]} 5. f4 {[%clk 0:03:01.6]} 5...
O-O {[%clk 0:03:02.7]} 6. Nf3 {[%clk 0:03:02.1]} 6... c5 {[%clk 0:03:02.6]} 7.
O-O {[%clk 0:03:01.9]} 7... Nc6 {[%clk 0:03:03.4]} 8. Nc3 {[%clk 0:03:01.8]}
8... b5 {[%clk 0:03:04.1]} 9. Nxb5 {[%clk 0:02:57.2]} 9... Rb8 {[%clk
0:03:04.4]} 10. Nc3 {[%clk 0:02:50.5]} 10... c4 {[%clk 0:03:04.1]} 11. h3 {[%clk
0:02:41]} 11... Ba6 {[%clk 0:02:56.2]} 12. Kh2 {[%clk 0:02:31.7]} 12... cxd3
{[%clk 0:02:53.1]} 13. cxd3 {[%clk 0:02:32.6]} 13... Nb4 {[%clk 0:02:51.9]} 14.
Ne1 {[%clk 0:02:31.6]} 14... Qb6 {[%clk 0:02:49]} 15. a3 {[%clk 0:02:26.2]}
15... Nc6 {[%clk 0:02:48.4]} 16. Nf3 {[%clk 0:02:05.9]} 16... Na5 {[%clk
0:02:37.8]} 17. b4 {[%clk 0:01:57.3]} 17... Nc6 {[%clk 0:02:27.2]} 18. Rb1
{[%clk 0:01:48.8]} 18... Nd4 {[%clk 0:01:59.1]} 19. Be3 {[%clk 0:01:37.9]} 19...
Nxf3+ {[%clk 0:01:58]} 20. Qxf3 {[%clk 0:01:37.8]} 20... Qc6 {[%clk 0:01:56.3]}
21. Bd4 {[%clk 0:01:23.3]} 21... Ng4+ {[%clk 0:01:50.6]} 22. hxg4 {[%clk
0:01:16.1]} 22... Bxd4 {[%clk 0:01:50]} 23. Nd5 {[%clk 0:01:14.7]} 23... Qd7
{[%clk 0:01:42.5]} 24. g5 {[%clk 0:00:59.9]} 24... h5 {[%clk 0:01:29.2]} 25.
gxh6 {[%clk 0:00:40.4]} 25... Kh7 {[%clk 0:01:24.6]} 26. f5 {[%clk 0:00:29.3]}
26... Kxh6 {[%clk 0:01:04.3]} 27. Bh3 {[%clk 0:00:24.7]} 27... g5 {[%clk
0:00:51]} 28. Kg2 {[%clk 0:00:17.7]} 28... Bf6 {[%clk 0:00:39.7]} 29. Bg4 {[%clk
0:00:14.8]} 29... Kg7 {[%clk 0:00:39.9]} 30. Rh1 {[%clk 0:00:14.1]} 30... Rh8
{[%clk 0:00:40.3]} 31. Rxh8 {[%clk 0:00:12.8]} 31... Rxh8 {[%clk 0:00:40.2]} 32.
Rc1 {[%clk 0:00:11]} 32... Bb7 {[%clk 0:00:31.3]} 33. Rc7 {[%clk 0:00:10.4]}
33... Qb5 {[%clk 0:00:30.7]} 34. Nxe7 {[%clk 0:00:09.5]} 34... Qb6 {[%clk
0:00:26]} 35. Rxb7 {[%clk 0:00:07.3]} 35... Qxb7 {[%clk 0:00:25.3]} 36. Nd5
{[%clk 0:00:07.8]} 36... Qc6 {[%clk 0:00:21.4]} 37. Qe3 {[%clk 0:00:06.8]} 37...
Qc2+ {[%clk 0:00:18.8]} 38. Be2 {[%clk 0:00:06.9]} 38... Bd4 {[%clk 0:00:18.7]}
39. Qxd4+ {[%clk 0:00:06.4]} 39... Kf8 {[%clk 0:00:17.1]} 40. Qxh8# {[%clk
0:00:06.2]} 1-0

[Event "Early-Titled-Tuesday-Blitz-November-28-2023"]
[Site "Chess.com"]
[Date "2023.11.28"]
[Round "7"]
[White "DawidCzerw"]
[Black "Chessbard1972"]
[Result "1-0"]
[WhiteElo "2538"]
[BlackElo "2403"]
[TimeControl "180+1"]
[EndTime "9:25:07 PST"]
[Termination "DawidCzerw won on time"]

1. e4 {[%clk 0:03:00.9]} 1... c5 {[%clk 0:02:58.8]} 2. Nf3 {[%clk 0:03:01.2]}
2... a6 {[%clk 0:02:58.9]} 3. d4 {[%clk 0:02:57.7]} 3... cxd4 {[%clk 0:02:57.3]}
4. c3 {[%clk 0:02:58.2]} 4... dxc3 {[%clk 0:02:56.4]} 5. Nxc3 {[%clk 0:02:58.5]}
5... e6 {[%clk 0:02:56.9]} 6. Bc4 {[%clk 0:02:57.8]} 6... Nc6 {[%clk 0:02:56.9]}
7. O-O {[%clk 0:02:57.8]} 7... b5 {[%clk 0:02:50.9]} 8. Bb3 {[%clk 0:02:56.9]}
8... Na5 {[%clk 0:02:51.2]} 9. Bc2 {[%clk 0:02:56.2]} 9... Ne7 {[%clk
0:02:48.6]} 10. Qe2 {[%clk 0:02:56.1]} 10... Bb7 {[%clk 0:02:47.1]} 11. Rd1
{[%clk 0:02:55.9]} 11... Qc7 {[%clk 0:02:42.1]} 12. Bg5 {[%clk 0:02:46.5]} 12...
f6 {[%clk 0:02:41.6]} 13. Bh4 {[%clk 0:02:46.6]} 13... Rc8 {[%clk 0:02:31.9]}
14. Rac1 {[%clk 0:02:44.8]} 14... Nc4 {[%clk 0:02:28]} 15. b3 {[%clk 0:02:36.8]}
15... Nb2 {[%clk 0:02:16.3]} 16. Rd3 {[%clk 0:01:44.2]} 16... Nxd3 {[%clk
0:02:11.9]} 17. Bxd3 {[%clk 0:01:40.6]} 17... b4 {[%clk 0:02:09]} 18. e5 {[%clk
0:01:40.5]} 18... f5 {[%clk 0:02:04.9]} 19. Nd4 {[%clk 0:01:29.9]} 19... bxc3
{[%clk 0:01:57.6]} 20. Qh5+ {[%clk 0:01:26.5]} 20... Ng6 {[%clk 0:01:46.4]} 21.
Nxf5 {[%clk 0:01:08.6]} 21... Qxe5 {[%clk 0:01:21.1]} 22. Bg3 {[%clk 0:00:28.6]}
22... Qf6 {[%clk 0:01:14.7]} 23. Nh4 {[%clk 0:00:22.2]} 23... Ba3 {[%clk
0:00:52.5]} 24. Nxg6 {[%clk 0:00:13.4]} 24... hxg6 {[%clk 0:00:43.5]} 25. Qxh8+
{[%clk 0:00:12.7]} 25... Ke7 {[%clk 0:00:43.2]} 26. Qh3 {[%clk 0:00:12.8]} 26...
Bxc1 {[%clk 0:00:38.4]} 27. Qg4 {[%clk 0:00:13.1]} 27... g5 {[%clk 0:00:22.8]}
28. h4 {[%clk 0:00:12.6]} 28... Rc5 {[%clk 0:00:20.6]} 29. hxg5 {[%clk
0:00:11.9]} 29... Bxg5 {[%clk 0:00:16.8]} 30. Qb4 {[%clk 0:00:12.1]} 30... d6
{[%clk 0:00:08.6]} 31. Qxb7+ {[%clk 0:00:12.2]} 31... Kf8 {[%clk 0:00:08.5]} 32.
Bxd6+ {[%clk 0:00:12.4]} 32... Kg8 {[%clk 0:00:08]} 33. Bxc5 {[%clk 0:00:12.7]}
33... c2 {[%clk 0:00:07.8]} 34. Bxc2 {[%clk 0:00:11.4]} 34... Bf4 {[%clk
0:00:07.2]} 35. g3 {[%clk 0:00:09.2]} 35... Be5 {[%clk 0:00:04.9]} 36. Qc8+
{[%clk 0:00:08.8]} 36... Kf7 {[%clk 0:00:03.9]} 37. Qd7+ {[%clk 0:00:09.3]}
37... Kg8 {[%clk 0:00:03.4]} 38. Qe8+ {[%clk 0:00:09.7]} 1-0

[Event "Early-Titled-Tuesday-Blitz-November-28-2023"]
[Site "Chess.com"]
[Date "2023.11.28"]
[Round "7"]
[White "shimastream"]
[Black "FM-to-GM"]
[Result "1-0"]
[WhiteElo "2938"]
[BlackElo "2669"]
[TimeControl "180+1"]
[EndTime "9:25:08 PST"]
[Termination "shimastream won by resignation"]

1. Nf3 {[%clk 0:02:59.2]} 1... Nf6 {[%clk 0:02:59.6]} 2. c4 {[%clk 0:02:58.3]}
2... c6 {[%clk 0:02:54.4]} 3. g3 {[%clk 0:02:56.9]} 3... d5 {[%clk 0:02:55.3]}
4. Bg2 {[%clk 0:02:56.7]} 4... g6 {[%clk 0:02:50.4]} 5. b3 {[%clk 0:02:55.4]}
5... Bg7 {[%clk 0:02:48.2]} 6. Bb2 {[%clk 0:02:55.9]} 6... O-O {[%clk
0:02:48.8]} 7. O-O {[%clk 0:02:54.4]} 7... a5 {[%clk 0:02:40.3]} 8. Nc3 {[%clk
0:02:53]} 8... a4 {[%clk 0:02:36]} 9. Nxa4 {[%clk 0:02:51.7]} 9... dxc4 {[%clk
0:02:34.4]} 10. bxc4 {[%clk 0:02:51.6]} 10... Qa5 {[%clk 0:02:34.4]} 11. Nc3
{[%clk 0:02:51.3]} 11... Ne4 {[%clk 0:02:33.7]} 12. Nxe4 {[%clk 0:02:22.4]}
12... Bxb2 {[%clk 0:02:33]} 13. Rb1 {[%clk 0:02:22.9]} 13... Qxa2 {[%clk
0:02:32.7]} 14. d3 {[%clk 0:02:16.1]} 14... Bg7 {[%clk 0:02:30.8]} 15. Nc5
{[%clk 0:02:10.5]} 15... Qa7 {[%clk 0:02:28.5]} 16. Nb3 {[%clk 0:02:08]} 16...
Rd8 {[%clk 0:02:23.3]} 17. Qc2 {[%clk 0:02:06.7]} 17... Nd7 {[%clk 0:02:16.8]}
18. Rfc1 {[%clk 0:02:03.5]} 18... Nc5 {[%clk 0:02:10.1]} 19. Nxc5 {[%clk
0:02:02.3]} 19... Qxc5 {[%clk 0:02:10.5]} 20. Nd2 {[%clk 0:02:02.5]} 20... h5
{[%clk 0:01:53.8]} 21. Ne4 {[%clk 0:02:00.3]} 21... Qa5 {[%clk 0:01:51.2]} 22.
h4 {[%clk 0:01:51.3]} 22... Qa2 {[%clk 0:01:50.2]} 23. Bf3 {[%clk 0:01:35.4]}
23... Bd4 {[%clk 0:01:46.4]} 24. Kg2 {[%clk 0:01:33.7]} 24... Qxc2 {[%clk
0:01:42.8]} 25. Rxc2 {[%clk 0:01:34.6]} 25... e5 {[%clk 0:01:31.6]} 26. e3
{[%clk 0:01:19.3]} 26... Ba1 {[%clk 0:01:31.4]} 27. Rcc1 {[%clk 0:01:15.4]}
27... f5 {[%clk 0:01:26.3]} 28. Rxa1 {[%clk 0:01:11]} 28... Rxa1 {[%clk
0:01:25.6]} 29. Rxa1 {[%clk 0:01:11.9]} 29... fxe4 {[%clk 0:01:26.5]} 30. Bxe4
{[%clk 0:01:12.8]} 30... Kf7 {[%clk 0:01:26.2]} 31. Rb1 {[%clk 0:01:11.7]} 31...
Rd7 {[%clk 0:01:15.9]} 32. f4 {[%clk 0:01:09.4]} 32... exf4 {[%clk 0:01:12.9]}
33. gxf4 {[%clk 0:01:09.4]} 33... Kf6 {[%clk 0:01:12.2]} 34. Kf3 {[%clk
0:01:07.8]} 34... Re7 {[%clk 0:01:07.7]} 35. c5 {[%clk 0:01:03]} 35... Bg4+
{[%clk 0:01:05.4]} 36. Kf2 {[%clk 0:01:02.9]} 36... Bf5 {[%clk 0:00:55.2]} 37.
Bxf5 {[%clk 0:01:01.1]} 37... Kxf5 {[%clk 0:00:56.1]} 38. Kf3 {[%clk 0:01:00.7]}
38... Rd7 {[%clk 0:00:53.5]} 39. d4 {[%clk 0:01:00.6]} 39... Re7 {[%clk
0:00:53.5]} 40. Rg1 {[%clk 0:00:57]} 40... Kf6 {[%clk 0:00:49.1]} 41. e4 {[%clk
0:00:56.3]} 41... Rd7 {[%clk 0:00:48.2]} 42. Ke3 {[%clk 0:00:54.6]} 42... Rd8
{[%clk 0:00:46.4]} 43. Rb1 {[%clk 0:00:53.9]} 43... Rd7 {[%clk 0:00:43.6]} 44.
Rb6 {[%clk 0:00:51.1]} 44... Kf7 {[%clk 0:00:40.8]} 45. Kd3 {[%clk 0:00:49.8]}
45... Ke7 {[%clk 0:00:33.9]} 46. Kc4 {[%clk 0:00:49.3]} 46... Kd8 {[%clk
0:00:33.5]} 47. d5 {[%clk 0:00:49]} 47... Kc7 {[%clk 0:00:32.5]} 48. d6+ {[%clk
0:00:48.1]} 48... Kd8 {[%clk 0:00:15.3]} 49. Kd4 {[%clk 0:00:38.8]} 49... Rf7
{[%clk 0:00:14.6]} 50. Ke3 {[%clk 0:00:39.1]} 50... Ke8 {[%clk 0:00:14.2]} 51.
e5 {[%clk 0:00:38.5]} 1-0